bitfinex-derivatives/quotes_ETHF0:USTF0_20251012
["timestamp","ask_amount","ask_price","bid_price","bid_amount"]
[1760282210879,20.39519457,4044.0,4043.9,3.65273]
[1760282211182,27.24611983,4044.0,4043.9,3.2078]
[1760282211383,12.90252457,4044.0,4043.9,3.2078]
[1760282211581,7.41863457,4044.0,4043.9,3.2078]
[1760282211786,4.39178457,4044.0,4043.9,3.2078]
[1760282212281,8.97318457,4044.0,4043.9,3.2078]
[1760282212589,16.67264639,4044.0,4043.9,3.2078]
[1760282212779,19.4772316,4044.0,4043.9,3.2078]
[1760282213081,4.39178457,4044.0,4043.9,3.2078]
[1760282213380,1.2651,4045.2,4045.0,0.44481]
[1760282213583,1.2651,4045.2,4045.1,3.2078]
[1760282213781,1.2651,4046.0,4045.9,0.44471]
[1760282213978,7.69946182,4045.9,4045.5,0.44475]
[1760282214180,11.01576182,4045.6,4045.5,0.44475]
[1760282214489,3.3163,4045.5,4044.8,3.2078]
[1760282214683,3.3163,4045.4,4044.8,3.21095971]
[1760282214887,13.78819782,4045.4,4044.8,0.00315971]
[1760282215186,18.71522364,4044.9,4044.8,3.21095971]
[1760282215379,3.3163,4044.9,4044.8,3.21095971]
[1760282215580,16.95711641,4044.9,4044.1,0.44491]
[1760282215883,3.3163,4044.6,4043.8,3.2078]
[1760282216186,3.3163,4044.3,4043.8,0.44494]
[1760282216385,3.3163,4044.4,4043.8,0.44494]
[1760282216587,3.3163,4044.1,4043.8,3.03166939]
[1760282216784,3.3163,4044.1,4041.2,11.13063]
[1760282216785,3.3163,4043.8,4041.5,1.11299]
[1760282216980,3.2078,4042.1,4041.3,3.2894]
[1760282217282,3.3163,4042.6,4041.1,3.2078]
[1760282217283,3.2078,4042.2,4041.1,3.2078]
[1760282217478,2.74168776,4042.0,4041.2,3.2894]
[1760282217676,2.74425713,4042.0,4041.8,0.44516]
[1760282217876,3.2078,4042.2,4042.0,0.48562414]
[1760282218082,3.2078,4042.9,4042.8,0.44505]
[1760282218279,6.5241,4042.9,4042.8,0.44505]
[1760282218478,6.5241,4042.9,4040.9,0.44526]
[1760282218479,0.44516,4041.9,4040.9,0.44526]
[1760282218787,0.44516,4041.9,4039.7,3.2894]
[1760282218788,3.3163,4040.9,4039.7,3.2894]
[1760282218984,10.0827438,4040.8,4040.7,0.44527]
[1760282219180,10.0827438,4040.8,4040.7,0.28542675]
[1760282219181,9.13969374,4040.8,4040.7,0.28542675]
[1760282219383,6.2649938,4040.8,4040.7,0.28542675]
[1760282219582,0.00280166,4040.8,4040.7,0.00241612]
[1760282219885,0.00280166,4040.8,4040.4,0.44531]
[1760282219886,3.3163,4040.4,4039.6,0.44539]
[1760282220087,3.2078,4039.7,4039.6,0.4454]
[1760282220301,2.61476,4039.7,4039.6,0.4454]
[1760282220484,3.2078,4040.5,4040.4,0.44532]
[1760282220789,0.00280166,4040.8,4040.6,0.44529]
[1760282221084,0.00280166,4040.8,4039.4,3.2078]
[1760282221085,3.3163,4039.9,4038.2,3.2078]
[1760282221389,13.7023,4040.2,4040.1,0.44535]
[1760282221782,3.3163,4040.1,4038.1,6.4972]
[1760282222087,3.3163,4039.3,4039.2,0.44545]
[1760282222384,4.5287,4039.2,4038.1,0.00305973]
[1760282222684,3.2471,4038.3,4038.2,0.44556]
[1760282222888,3.2078,4038.4,4038.1,0.00305973]
[1760282223079,4.5122,4040.3,4039.8,0.44538]
[1760282223279,6.4549,4040.0,4039.9,0.44537]
[1760282223479,6.4549,4040.0,4039.4,1.11358]
[1760282223783,6.4549,4040.0,4039.9,0.44537]
[1760282223784,2.70860756,4040.0,4039.9,0.44537]
[1760282223981,3.2078,4040.2,4039.9,0.44537]
[1760282224282,5.81657278,4040.1,4040.0,0.44536]
[1760282224488,5.81657278,4040.1,4039.5,0.44541]
[1760282224489,6.26192278,4040.1,4039.5,0.44541]
[1760282224691,3.2078,4039.6,4039.1,0.44545]
[1760282224878,3.2078,4039.6,4038.1,0.00305973]
[1760282225078,40.8,4040.0,4038.1,0.00305973]
[1760282225079,3.2078,4039.0,4038.9,0.44548]
[1760282225281,3.2078,4039.0,4038.3,0.44554]
[1760282225481,3.2078,4038.4,4038.2,0.44555]
[1760282225679,40.8,4038.3,4038.2,0.44555]
[1760282225877,43.61550656,4038.3,4038.2,0.44555]
[1760282226085,10.387,4038.8,4038.7,0.4455]
[1760282226481,57.21030656,4038.8,4038.1,0.00305973]
[1760282226685,57.21030656,4038.8,4036.9,3.2733]
[1760282226686,3.2471,4038.1,4037.2,11.14185]
[1760282226882,54.47770242,4038.8,4038.7,0.4455]
[1760282226883,51.187,4038.8,4038.7,0.4455]
[1760282227084,10.387,4038.8,4038.7,0.4455]
[1760282227301,0.44534,4040.2,4039.9,0.44537]
[1760282227302,3.2078,4040.0,4039.9,0.44537]
[1760282227495,2.22504,4043.3,4039.9,0.44537]
[1760282227496,1.66e-06,4040.8,4040.7,0.44528]
[1760282227684,0.022,4042.8,4042.3,0.44511]
[1760282227685,44.0078,4042.4,4042.3,0.44511]
[1760282227991,3.2078,4043.8,4043.7,0.44495]
[1760282228189,10.388,4045.3,4043.1,4.32033]
[1760282228190,3.2078,4044.3,4043.1,4.32033]
[1760282228489,2.20858369,4043.1,4043.0,3.65283]
[1760282228691,0.00196378,4043.1,4041.5,11.12987]
[1760282228891,9.18713598,4043.1,4042.4,3.2078]
[1760282229093,3.2471,4045.0,4044.3,0.44489]
[1760282229282,3.2471,4045.0,4043.5,3.2733]
[1760282229283,3.2471,4044.8,4044.7,0.44484]
[1760282229489,1.4045282,4044.3,4044.2,3.2733]
[1760282229688,0.74755232,4044.3,4044.2,3.6527]
[1760282229882,2.7228482,4045.2,4044.6,3.71815]
[1760282229883,2.54846336,4044.8,4044.6,3.71815]
[1760282230085,3.2471,4044.7,4044.6,0.44485]
[1760282230286,0.00238172,4044.8,4044.5,3.2078]
[1760282230596,0.00238172,4044.8,4044.7,3.2078]
[1760282230889,3.2471,4045.3,4044.7,3.2078]
[1760282231185,3.2471,4045.3,4045.1,0.44479]
[1760282231186,3.2078,4045.3,4045.1,0.44479]
[1760282231385,3.2078,4045.3,4044.4,3.2078]
[1760282231386,5.94060838,4045.2,4044.4,3.2078]
[1760282231592,5.94060838,4045.2,4044.1,11.1228]
[1760282231593,2.23343048,4045.2,4045.0,0.44481]
[1760282231890,2.23343048,4045.2,4044.0,1.11228]
[1760282231891,3.2078,4045.9,4044.4,3.2078]
[1760282232092,2.65932337,4045.1,4045.0,0.00269469]
[1760282232301,4.7e-07,4045.2,4045.1,0.4448]
[1760282232596,1.2651,4048.0,4045.3,11.11948]
[1760282232597,3.2078,4047.3,4045.3,11.11948]
[1760282232795,3.2078,4046.7,4046.1,0.44468]
[1760282233089,1.19266778,4045.7,4045.6,0.44474]
[1760282233291,3.2471,4046.2,4045.4,3.2078]
[1760282233489,3.2078,4046.5,4045.0,0.00269469]
[1760282233490,3.2078,4045.5,4045.0,0.00269469]
[1760282233689,3.2078,4045.5,4045.0,3.21049469]
[1760282233891,3.2471,4045.4,4045.0,3.21049469]
[1760282234091,3.2471,4045.3,4045.0,3.21049469]
[1760282234293,3.2471,4045.3,4044.7,3.2078]
[1760282234589,0.00309498,4045.7,4044.7,3.2078]
[1760282234590,3.2471,4044.9,4044.7,0.44483]
[1760282234791,3.2471,4045.1,4044.9,0.44481]
[1760282234995,42.0816,4045.2,4044.9,0.44481]
[1760282235302,8.97080337,4045.6,4044.9,0.44481]
[1760282235303,2.70580118,4045.0,4044.9,0.44481]
[1760282235591,3.2471,4045.0,4044.9,0.00310675]
[1760282235792,5.2431,4045.0,4044.9,0.00310675]
[1760282235995,5.2431,4045.0,4044.9,0.44792675]
[1760282236196,3.2471,4045.8,4045.7,0.44473]
[1760282236490,3.2471,4045.8,4045.7,3.65253]
[1760282236491,5.89021346,4045.8,4045.7,3.65253]
[1760282236694,5.31251346,4045.8,4045.7,3.65253]
[1760282236892,9.04e-06,4045.8,4045.7,3.65253]
[1760282237097,0.022,4047.8,4047.7,0.44451]
[1760282237394,2.79153433,4047.7,4047.5,0.44452]
[1760282237698,2.79153433,4047.7,4046.4,3.2078]
[1760282238099,2.79400277,4047.7,4046.8,0.4446]
[1760282238288,3.27224705,4047.6,4046.4,3.2078]
[1760282238489,2.79400277,4047.7,4047.5,3.65233]
[1760282238694,0.00246844,4047.7,4047.5,3.65233]
[1760282238894,5.87592757,4047.6,4047.5,3.65233]
[1760282239095,5.87592757,4047.6,4047.5,0.44453]
[1760282239292,3.2471,4047.6,4047.5,3.65233]
[1760282239496,3.2471,4047.6,4046.9,3.2078]
[1760282239497,5.87592757,4047.6,4046.9,3.2078]
[1760282239803,3.2471,4047.5,4047.4,0.44454]
[1760282239997,2.62882757,4047.6,4047.4,0.44454]
[1760282240295,2.62882757,4047.6,4047.0,1.11147]
[1760282240296,0.00246844,4047.7,4047.6,0.44452]
[1760282240502,6.44156977,4047.5,4046.4,0.44465]
[1760282240690,3.2354963,4047.5,4046.3,3.2078]
[1760282240892,1.2816,4047.6,4046.4,3.2078]
[1760282241092,0.44458,4047.1,4046.5,0.44464]
[1760282241293,0.44458,4047.1,4046.6,0.44463]
[1760282241493,2.62408777,4047.0,4046.7,0.44461]
[1760282241692,2.62408777,4047.0,4046.5,0.44464]
[1760282241901,3.2471,4046.1,4045.8,3.2078]
[1760282242093,1.2816,4046.4,4044.5,1.11217]
[1760282242094,3.2471,4045.8,4044.5,3.2078]
[1760282242290,2.61688955,4046.0,4045.9,0.44471]
[1760282242494,2.61688955,4046.1,4045.9,0.44471]
[1760282242694,3.2471,4046.6,4046.0,3.2078]
[1760282242896,3.2078,4047.0,4046.5,0.44464]
[1760282243101,2.59998461,4046.5,4046.4,0.44466]
[1760282243298,6.4549,4046.5,4046.4,0.44466]
[1760282243496,3.2471,4046.5,4046.4,0.44466]
[1760282243690,1.2816,4047.6,4046.4,0.44466]
[1760282243691,2.59998461,4047.2,4047.0,0.44459]
[1760282243896,3.2471,4047.5,4046.7,3.2078]
[1760282244091,6.4549,4047.6,4047.5,0.44453]
[1760282244297,6.4549,4047.6,4045.9,11.11771]
[1760282244298,6.4549,4047.6,4046.1,3.2078]
[1760282244502,3.2078,4047.4,4047.3,0.44456]
[1760282244696,0.44457,4047.2,4046.7,0.44461]
[1760282244896,3.2471,4047.1,4046.5,3.2078]
[1760282245097,3.2471,4047.0,4046.4,3.2078]
[1760282245305,3.2471,4046.8,4046.4,3.2078]
[1760282245499,3.2471,4046.8,4045.6,3.2733]
[1760282245500,3.2471,4046.8,4045.8,0.44471]
[1760282245701,5.8715786,4046.7,4046.5,0.44464]
[1760282245896,3.2078,4046.9,4046.8,0.44461]
[1760282246097,2.64545952,4046.8,4046.0,3.2078]
[1760282246298,2.64545952,4046.6,4045.9,3.2078]
[1760282246608,9.54496952,4046.9,4045.9,3.2078]
[1760282246609,2.64545952,4046.8,4046.0,1.11176]
[1760282246800,3.2471,4046.7,4045.6,1.11186]
[1760282247107,2.70515863,4046.6,4046.5,3.65244]
[1760282247609,5.95503414,4047.3,4047.1,0.44457]
[1760282247804,5.95503414,4047.3,4046.6,1.11159]
[1760282247805,40.8,4047.4,4046.6,3.2078]
[1760282248104,40.8,4047.4,4046.0,3.2733]
[1760282248105,0.4446,4046.9,4046.7,3.2078]
[1760282248408,2.49344031,4046.8,4046.6,0.44462]
[1760282248602,2.49344031,4046.8,4046.5,3.2078]
[1760282248800,3.69171,4046.8,4046.0,4.38503]
[1760282248999,3.69171,4046.8,4045.4,1.1119]
[1760282249000,3.2471,4046.8,4046.2,3.2078]
[1760282249204,3.2471,4048.9,4047.6,3.71782]
[1760282249507,0.69077939,4049.3,4048.5,0.44443]
[1760282249508,3.93787939,4049.3,4048.5,0.44443]
[1760282249702,2.87539941,4048.6,4048.5,0.44443]
[1760282249905,5.82625746,4048.5,4048.4,0.44443]
[1760282250104,5.40455687,4048.5,4048.4,0.44443]
[1760282250318,0.00280354,4048.5,4048.4,0.44622266]
[1760282250611,2.581961,4048.5,4048.4,3.65402266]
[1760282250906,0.00280354,4048.5,4048.4,3.65402266]
[1760282251107,3.54e-06,4048.6,4048.5,3.2733]
[1760282251304,3.54e-06,4048.6,4048.5,3.2078]
[1760282252001,3.54e-06,4048.6,4048.5,6.4811]
[1760282252002,0.00305384,4048.6,4048.5,6.4811]
[1760282252208,0.00305384,4048.6,4048.5,3.2078]
[1760282252407,3.21415384,4048.6,4048.5,3.04599351]
[1760282252605,3.2111,4048.5,4048.4,3.20959266]
[1760282252801,6.03649941,4048.5,4048.4,3.20959266]
[1760282253111,8.7023283,4048.5,4048.4,3.20959266]
[1760282253408,2.82539941,4048.5,4048.4,3.20959266]
[1760282254103,2.82539941,4048.5,4047.6,1.1113]
[1760282254104,0.44445,4048.3,4046.9,0.44459]
[1760282254309,12.35889851,4048.5,4046.8,3.4297]
[1760282254310,3.2111,4048.0,4047.1,3.2078]
[1760282254512,3.2111,4048.0,4046.8,3.4297]
[1760282254513,2.75604344,4048.2,4047.6,3.2078]
[1760282254808,2.75604344,4048.2,4047.0,1.11148]
[1760282254809,3.2111,4048.0,4047.9,3.65229]
[1760282255110,6.48260498,4048.0,4047.9,0.00247702]
[1760282255410,6.03812498,4048.0,4047.9,0.00247702]
[1760282255611,2.82702498,4048.0,4047.9,0.00247702]
[1760282256010,6.03812498,4048.0,4047.9,0.00247702]
[1760282256405,2.82702498,4048.0,4047.9,0.00247702]
[1760282256905,6.03812498,4048.0,4047.9,0.00247702]
[1760282258307,2.82702498,4048.0,4047.9,0.00247702]
[1760282258706,3.2078,4048.4,4047.9,0.00247702]
[1760282258707,3.2111,4048.2,4048.0,0.44448]
[1760282259017,3.21415384,4048.6,4048.5,0.44443]
[1760282259204,0.00305384,4048.6,4048.5,0.44443]
[1760282259606,3.84e-06,4048.6,4048.5,3.87413]
[1760282259805,3.84e-06,4048.6,4048.5,0.44443]
[1760282260505,2.76036437,4048.6,4047.9,3.21027702]
[1760282260704,2.76036437,4048.6,4048.2,0.44445]
[1760282260898,3.2111,4048.0,4047.9,0.00247702]
[1760282261305,5.98572052,4048.0,4047.9,0.00247702]
[1760282261904,5.98572052,4048.0,4047.9,0.44696702]
[1760282262104,2.77462052,4048.0,4047.9,0.44696702]
[1760282262410,2.77462052,4048.0,4047.9,3.87666702]
[1760282262708,3.84e-06,4048.6,4048.4,0.44443]
[1760282262913,2.60799595,4048.5,4048.4,0.44443]
[1760282263112,3.84e-06,4048.6,4048.4,0.44443]
[1760282263606,2.59834868,4048.5,4048.4,0.44443]
[1760282263818,3.84e-06,4048.6,4048.4,0.44443]
[1760282263819,3.84e-06,4048.6,4048.4,3.66033]
[1760282264312,2.64631961,4048.5,4048.4,3.66033]
[1760282264510,2.64631961,4048.5,4048.4,0.44443]
[1760282264901,2.64631961,4048.5,4048.4,3.66033]
[1760282265412,3.84e-06,4048.6,4048.4,3.66033]
[1760282265413,3.84e-06,4048.6,4048.4,0.44443]
[1760282266010,3.84e-06,4048.6,4048.4,3.65223]
[1760282266309,3.84e-06,4048.6,4048.4,0.44443]
[1760282266709,2.86680732,4048.5,4048.4,0.44443]
[1760282267113,0.43603384,4048.6,4048.5,3.2159]
[1760282267412,3.84e-06,4048.6,4048.5,3.66033]
[1760282267614,3.84e-06,4048.6,4048.5,6.86813]
[1760282268013,3.84e-06,4048.6,4048.5,3.65223]
[1760282268211,0.00224633,4048.6,4048.5,3.65223]
[1760282268409,0.00224633,4048.6,4048.5,0.44443]
[1760282268617,6.15907547,4048.6,4048.5,0.44443]
[1760282269010,2.81767547,4048.6,4048.5,0.44443]
[1760282269217,0.69077939,4049.3,4049.2,0.44435]
[1760282269614,3.28263748,4049.3,4049.2,3.66025]
[1760282269918,0.69077939,4049.3,4049.2,3.66025]
[1760282270115,6.69253103,4049.3,4049.2,0.44435]
[1760282270417,0.69347767,4049.3,4049.2,0.44435]
[1760282270713,0.69347767,4049.3,4048.4,3.2078]
[1760282270714,6.69253103,4049.3,4048.4,3.2078]
[1760282270915,3.3414,4049.2,4049.1,0.44436]
[1760282271422,3.3414,4049.1,4049.0,0.44437]
[1760282271616,2.79367085,4049.2,4049.0,0.44437]
[1760282271617,2.12277085,4049.2,4049.1,3.2159]
[1760282271820,0.69347767,4049.3,4049.2,0.44435]
[1760282272121,0.45688767,4049.6,4049.5,0.44432]
[1760282272420,7.67e-06,4049.6,4049.5,3.66022]
[1760282272721,2.63939506,4049.6,4049.5,0.44432]
[1760282272917,5.98079506,4049.6,4049.5,0.44432]
[1760282273217,5.98355576,4049.6,4048.6,3.2078]
[1760282273407,6.5492,4049.1,4048.9,0.44438]
[1760282273812,6.5492,4049.1,4048.8,1.11099]
[1760282273813,6.55196837,4049.6,4049.5,0.44432]
[1760282274021,3.34416837,4049.6,4049.5,0.44432]
[1760282274213,6.04391393,4049.6,4049.5,0.44432]
[1760282274411,2.70251393,4049.6,4049.5,0.44432]
[1760282274617,40.8027607,4049.6,4049.5,0.44432]
[1760282274912,46.84391393,4049.6,4049.5,0.44432]
[1760282275324,43.50251393,4049.6,4049.5,0.44432]
[1760282275517,0.0027607,4049.6,4049.5,0.44432]
[1760282275715,6.1075474,4049.6,4049.5,0.44432]
[1760282275915,50.1153474,4049.6,4049.5,0.44432]
[1760282276120,50.1153474,4049.6,4048.7,1.11102]
[1760282276418,3.3414,4048.9,4048.8,0.44439]
[1760282276624,6.5492,4049.5,4049.4,0.44433]
[1760282276919,6.5492,4049.5,4049.3,0.44433]
[1760282276920,5.79488533,4049.5,4049.3,0.44433]
[1760282277109,3.3414,4049.4,4049.3,0.44433]
[1760282277308,5.79488533,4049.5,4048.8,1.11099]
[1760282277521,5.79488533,4049.5,4049.4,0.44433]
[1760282277522,6.5492,4049.5,4049.4,0.44433]
[1760282277716,7.8591,4049.5,4049.4,0.44433]
[1760282277923,9.13628533,4049.5,4049.4,0.44433]
[1760282278313,9.13628533,4049.5,4049.3,0.44433]
[1760282278314,5.79488533,4049.5,4049.3,0.44433]
[1760282278511,3.3414,4049.4,4048.8,1.11099]
[1760282278713,3.3414,4048.8,4048.1,3.7933581]
[1760282279016,3.3414,4048.8,4048.7,0.4444]
[1760282279017,7.8591,4048.8,4048.7,0.4444]
[1760282279216,6.5492,4048.8,4048.7,0.4444]
[1760282279412,3.3414,4048.7,4048.6,0.4444]
[1760282279610,0.87212278,4051.7,4050.5,3.2159]
[1760282279818,1.01126556,4053.3,4051.6,3.2078]
[1760282280120,0.01744137,4052.8,4052.3,3.2078]
[1760282280325,2.58102209,4052.7,4052.5,0.44398]
[1760282280519,1.77843047,4052.7,4052.6,3.2159]
[1760282280724,0.7012,4055.1,4053.6,3.2159]
[1760282280919,0.7012,4055.1,4054.0,3.2078]
[1760282281118,2.83596852,4054.6,4053.1,3.2159]
[1760282281419,2.83596852,4054.6,4053.0,3.79275353]
[1760282281420,5.81892199,4055.2,4054.5,11.09433]
[1760282281628,5.05344871,4055.2,4055.1,0.4437]
[1760282281820,5.05344871,4055.2,4054.1,1.10951]
[1760282281821,0.00213672,4055.2,4054.2,3.2159]
[1760282282018,3.2078,4055.0,4053.9,3.2078]
[1760282282216,1.4232,4055.0,4053.6,4.5356]
[1760282282419,3.2078,4054.7,4053.6,3.2078]
[1760282282619,1.415,4054.0,4052.3,0.58495353]
[1760282282813,3.2078,4052.7,4052.2,3.3797]
[1760282283020,13.73104998,4055.0,4052.2,3.3797]
[1760282283021,1.415,4053.8,4052.5,3.2078]
[1760282283222,3.2078,4053.5,4052.5,3.2078]
[1760282283520,3.2078,4053.3,4052.2,3.3797]
[1760282283918,2.82370892,4053.2,4052.3,3.2078]
[1760282284115,1.415,4052.6,4050.9,4.7075]
[1760282284319,10.362,4052.6,4051.5,3.3797]
[1760282284517,2.38960566,4052.5,4052.1,3.3797]
[1760282284718,2.38960566,4052.5,4052.3,3.2078]
[1760282284924,2.38960566,4052.5,4051.9,3.2078]
[1760282285117,40.8,4052.4,4051.9,3.20985042]
[1760282285316,40.8,4052.4,4051.9,0.00205042]
[1760282285317,0.44404,4052.1,4051.9,0.00205042]
[1760282285520,0.00177126,4052.1,4051.9,0.00205042]
[1760282285722,2.60929889,4052.0,4051.9,0.00205042]
[1760282286320,0.00177126,4052.1,4052.0,3.82374]
[1760282286517,2.58178963,4052.0,4051.9,0.00205042]
[1760282286720,2.58178963,4052.0,4051.9,3.38175042]
[1760282286926,40.8,4052.0,4051.9,3.38175042]
[1760282287216,2.79123629,4052.0,4051.9,3.20985042]
[1760282287421,2.79123629,4052.0,4051.9,0.00205042]
[1760282287917,0.00177126,4052.1,4052.0,1.3354]
[1760282288123,10.362,4052.6,4052.4,0.44399]
[1760282288625,10.362,4052.6,4052.5,3.2078]
[1760282288832,6.92187538,4052.6,4052.5,6.5875]
[1760282289126,6.92399369,4052.6,4052.5,6.5875]
[1760282289329,1.415,4054.5,4052.8,12.43424]
[1760282289629,2.69330702,4054.3,4053.9,3.3797]
[1760282289830,0.83431702,4054.3,4054.2,7.0313]
[1760282290126,3.3969,4057.5,4055.8,12.1997]
[1760282290330,0.00257064,4057.5,4056.6,3.2078]
[1760282290625,4.2319,4057.4,4057.2,0.44347]
[1760282290826,3.3969,4057.3,4057.2,0.44347]
[1760282291223,6.19388331,4057.3,4057.2,0.44347]
[1760282291726,1.3007,4058.4,4057.0,3.2078]
[1760282291727,6.4e-07,4057.8,4057.7,0.44342]
[1760282291925,3.39690064,4057.8,4057.7,0.44342]
[1760282292126,4.6976,4057.2,4055.8,0.00316668]
[1760282292332,3.3969,4056.9,4055.8,0.00316668]
[1760282292523,3.3969,4056.2,4054.7,3.2078]
[1760282292827,3.3969,4055.1,4053.5,3.2078]
[1760282293028,3.3969,4055.1,4053.4,11.0972]
[1760282293029,3.2078,4055.2,4055.1,0.4437]
[1760282293224,6.6047,4055.2,4055.1,0.4437]
[1760282293419,6.63810393,4055.2,4055.1,0.4437]
[1760282293624,3.3969,4057.3,4057.2,0.44347]
[1760282294024,2.75125337,4057.3,4057.2,0.44347]
[1760282294227,3.3969,4058.0,4057.7,0.44342]
[1760282294528,3.3969,4058.0,4057.2,3.2078]
[1760282294529,2.75125337,4057.3,4057.1,0.44348]
[1760282294835,3.3969,4057.2,4057.1,0.44348]
[1760282295326,2.57937142,4057.2,4057.1,0.44348]
[1760282295723,0.00183579,4057.8,4057.7,0.44342]
[1760282295920,0.00183579,4057.8,4057.7,3.82312]
[1760282296121,2.72593414,4057.8,4057.7,3.65122]
[1760282296325,1.37481414,4057.8,4057.7,3.65122]
[1760282296526,1.37481414,4057.8,4054.7,0.76959142]
[1760282296527,6.6047,4057.8,4056.2,3.2078]
[1760282296838,3.3969,4057.8,4057.6,0.44342]
[1760282297132,2.72409835,4059.2,4059.1,0.44327]
[1760282297133,3.3969,4059.2,4059.1,0.44327]
[1760282297335,44.4,4062.5,4059.1,0.0030407]
[1760282297336,0.32000471,4059.7,4059.1,0.0030407]
[1760282297530,2.82382272,4059.2,4059.1,0.4463107]
[1760282297731,3.39919679,4059.2,4059.1,0.0030407]
[1760282297928,0.00229679,4059.2,4059.1,0.4463107]
[1760282298132,1.32758,4061.3,4059.1,0.4463107]
[1760282298133,0.22,4061.3,4061.2,3.82274]
[1760282298327,0.022,4062.8,4061.5,0.443]
[1760282298328,3.2078,4062.0,4061.5,0.443]
[1760282298530,1.3007,4062.6,4061.1,3.2078]
[1760282298531,3.3969,4062.2,4061.1,3.2078]
[1760282298726,3.2078,4061.6,4060.5,3.2078]
[1760282298936,3.3969,4061.9,4061.0,3.2078]
[1760282299131,3.3969,4061.2,4060.2,3.2078]
[1760282299328,3.3969,4061.2,4060.4,0.44311]
[1760282299634,2.65878609,4061.1,4060.2,6.5875]
[1760282299836,0.44304,4061.2,4060.8,3.2078]
[1760282300030,3.3969,4061.1,4060.3,3.2078]
[1760282300232,3.3969,4061.4,4061.0,0.44305]
[1760282300432,3.3969,4061.4,4060.3,3.2078]
[1760282300732,2.76593741,4061.0,4060.9,0.44307]
[1760282300934,3.3969,4061.7,4060.9,6.5875]
[1760282301237,2.76593741,4061.0,4060.9,3.3797]
[1760282301427,2.83978573,4061.2,4061.1,3.3797]
[1760282301631,3.2298,4062.8,4061.6,0.44299]
[1760282301832,3.2298,4062.8,4062.2,0.44292]
[1760282302028,3.2298,4062.8,4061.7,3.2078]
[1760282302238,3.2298,4062.8,4061.1,3.3797]
[1760282302239,2.81968224,4062.3,4062.2,3.65073]
[1760282302537,3.2078,4062.6,4061.7,3.2078]
[1760282302845,3.3969,4061.8,4061.7,0.00257646]
[1760282303237,2.1789863,4061.8,4061.7,0.00257646]
[1760282303530,3.3969,4061.8,4061.7,0.00257646]
[1760282304037,2.62744252,4061.8,4061.7,3.65335646]
[1760282304334,3.3969,4061.8,4061.7,0.00257646]
[1760282304932,46.52913748,4061.8,4061.7,0.00257646]
[1760282305526,0.00226214,4062.6,4061.7,0.00257646]
[1760282305726,2.82748925,4061.8,4061.7,0.00257646]
[1760282305936,3.3969,4061.8,4061.7,0.00257646]
[1760282306436,5.97984348,4061.8,4061.7,0.00257646]
[1760282306738,3.3969,4062.1,4061.7,0.44554646]
[1760282307038,5.97984348,4061.8,4061.7,3.65334646]
[1760282307236,2.65743573,4062.1,4061.9,0.44295]
[1760282307538,40.8,4062.1,4062.0,0.44293]
[1760282307734,3.3969,4061.9,4061.7,3.65334646]
[1760282307933,43.90036573,4062.1,4061.7,3.21037646]
[1760282308140,5.93718596,4061.8,4061.7,0.00257646]
[1760282308333,3.3969,4061.8,4061.7,0.00257646]
[1760282308529,2.58569887,4061.9,4061.8,0.44296]
[1760282308740,40.8,4062.1,4061.7,3.65334646]
[1760282308938,3.3969,4061.8,4061.7,0.00257646]
[1760282309132,3.83986,4061.8,4061.7,0.00257646]
[1760282309333,4.6976,4060.8,4060.7,3.2078]
[1760282309531,3.3969,4060.8,4060.7,3.2078]
[1760282309733,5.97556141,4060.8,4060.7,3.2078]
[1760282309937,3.3969,4061.5,4060.7,6.5875]
[1760282310139,3.3969,4062.1,4062.0,0.44294]
[1760282310435,3.39916214,4062.6,4062.5,0.44289]
[1760282310636,3.39916214,4062.6,4062.5,3.65069]
[1760282310835,3.3969,4064.3,4062.9,2.2142]
[1760282311038,1.3007,4063.5,4062.9,3.2078]
[1760282311230,4.6976,4063.5,4063.4,3.2078]
[1760282311430,3.3969,4064.3,4063.4,3.2078]
[1760282311635,3.3969,4064.3,4063.4,3.65059]
[1760282311932,3.3969,4064.3,4063.4,3.2078]
[1760282311933,4.6976,4063.5,4063.4,3.2078]
[1760282312140,1.3007,4063.5,4063.3,0.4428]
[1760282312439,1.3007,4063.5,4062.2,3.2078]
[1760282312440,3.3816,4062.9,4062.2,3.2078]
[1760282312633,7.02949968,4063.5,4060.7,0.00314095]
[1760282312634,3.3816,4062.5,4060.7,0.00314095]
[1760282312839,3.3816,4062.1,4060.7,0.00314095]
[1760282313139,3.2078,4062.2,4060.7,0.00314095]
[1760282313140,3.3816,4061.6,4061.5,0.44299]
[1760282313335,0.11985105,4062.0,4061.9,0.44295]
[1760282313534,3.2078,4062.7,4062.6,0.44287]
[1760282313738,6.5894,4063.2,4062.0,3.2078]
[1760282314034,1.3007,4063.5,4061.5,11.07492]
[1760282314035,2.78986924,4062.5,4062.4,0.4429]
[1760282314228,2.78986924,4062.5,4061.5,14.28268]
[1760282314229,9.37926924,4063.1,4063.0,0.44283]
[1760282314431,6.5894,4063.1,4063.0,0.44283]
[1760282314633,3.2078,4063.6,4062.6,1.10719]
[1760282314834,3.82439,4063.4,4062.8,0.44285]
[1760282315034,3.82439,4063.4,4062.5,6.4147]
[1760282315035,2.83284009,4063.1,4062.9,0.44283]
[1760282315230,2.83284009,4063.4,4062.9,0.44283]
[1760282315231,40.8,4063.0,4062.9,3.64973]
[1760282315533,2.78088381,4063.0,4062.2,6.4147]
[1760282315730,2.78088381,4063.0,4062.1,1.10731]
[1760282315731,2.78088381,4063.2,4063.0,0.44283]
[1760282315931,40.8,4063.1,4062.7,3.2078]
[1760282316240,2.69287213,4063.1,4063.0,3.2069]
[1760282316430,6.07447213,4063.8,4063.4,0.44279]
[1760282316740,5.90067213,4063.5,4062.7,3.2078]
[1760282317034,40.8,4063.7,4062.8,1.10714]
[1760282317035,3.3816,4063.6,4062.8,1.10714]
[1760282317236,2.72377189,4063.4,4062.7,3.2078]
[1760282317432,3.2078,4063.6,4062.7,3.2078]
[1760282317433,2.72377189,4063.6,4063.5,0.44278]
[1760282317634,3.3816,4063.6,4063.5,0.44278]